bitfinex-derivatives/quotes_SOLF0:USTF0_20241208
["timestamp","ask_amount","ask_price","bid_price","bid_amount"]
[1733651931326,2.1344,234.08,234.02,10.51541978]
[1733651932236,2.1344,234.08,234.03,2.1348]
[1733651932635,2.1344,234.08,234.02,10.51541978]
[1733651933243,2.1344,234.08,234.02,12.65031978]
[1733651933436,2.1345,234.07,234.02,12.65031978]
[1733651934539,190.0,234.43,234.02,10.51541978]
[1733651934740,10.51541978,234.19,234.05,10.51541978]
[1733651934948,10.51541978,234.16,234.05,12.89541978]
[1733651936037,2.1339,234.13,234.05,15.03001978]
[1733651936240,10.51541978,234.16,234.05,12.89541978]
[1733651936435,10.51541978,234.19,234.05,12.89541978]
[1733651937337,5.0771,234.2,234.08,10.51541978]
[1733651937543,2.1337,234.16,234.1,2.1341]
[1733651939043,2.1336,234.17,234.11,2.1341]
[1733651939244,2.1336,234.17,234.09,1.3312]
[1733651939437,2.1336,234.17,234.1,2.38]
[1733651939646,10.51541978,234.22,234.09,1.3312]
[1733651939843,2.1334,234.19,234.11,10.51541978]
[1733651940039,2.1334,234.19,234.14,2.1338]
[1733651940646,2.38,234.38,234.17,10.51541978]
[1733651940850,10.51541978,234.33,234.17,10.51541978]
[1733651941051,10.51541978,234.33,234.18,2.1334]
[1733651941052,2.1325,234.29,234.18,2.1334]
[1733651941245,10.51541978,234.33,234.18,2.38]
[1733651941652,1.3749,234.35,234.18,2.38]
[1733651941858,10.51541978,234.31,234.19,2.1334]
[1733651942953,10.51541978,234.31,234.2,2.1333]
[1733651943352,10.51541978,234.34,234.2,10.51541978]
[1733651943556,10.51541978,234.34,234.22,2.133]
[1733651943755,2.1327,234.27,234.22,2.133]
[1733651944753,2.1327,234.27,234.18,2.38]
[1733651944754,10.51541978,234.31,234.18,2.38]
[1733651945555,2.1329,234.24,234.19,2.1334]
[1733651945755,10.51541978,234.28,234.14,10.51541978]
[1733651945950,10.51541978,234.25,234.11,11.88391978]
[1733651946152,10.51541978,234.25,234.12,2.38]
[1733651946450,2.1332,234.22,234.12,4.514]
[1733651946656,10.51541978,234.25,234.12,2.38]
[1733651947547,10.51541978,234.25,234.13,2.1339]
[1733651948053,2.1334,234.2,234.14,15.02921978]
[1733651948959,10.51541978,234.28,234.14,12.89541978]
[1733651949159,11.87331978,234.31,234.17,10.51541978]
[1733651949859,2.133,234.24,234.18,2.1334]
[1733651950759,10.51541978,234.28,234.14,10.51541978]
[1733651950958,10.51541978,234.25,234.14,10.51541978]
[1733651951265,2.1331,234.22,234.15,2.38]
[1733651951461,10.51541978,234.25,234.15,2.38]
[1733651951856,2.1334,234.19,234.15,2.38]
[1733651952865,1.2932,234.27,234.15,2.38]
[1733651953568,1.2932,234.27,234.16,2.1336]
[1733651953763,10.51541978,234.25,234.11,10.51541978]
[1733651954060,2.1338,234.15,234.12,2.3]
[1733651955368,1.2732,234.24,234.1,2.3]
[1733651955369,2.1339,234.13,234.1,2.3]
[1733651955661,10.51541978,234.22,234.1,2.3]
[1733651956260,1.3044,234.21,234.1,2.3]
[1733651957363,2.134,234.13,234.09,2.3]
[1733651958260,2.134,234.12,234.09,2.3]
[1733651959059,2.134,234.12,234.08,12.64981978]
[1733651959262,3.6044,234.21,234.08,12.81541978]
[1733651960458,2.1339,234.13,234.08,12.64981978]
[1733651960663,3.6044,234.21,234.09,2.3]
[1733651961666,2.1339,234.13,234.09,4.4342]
[1733651962667,2.1339,234.13,234.09,2.3]
[1733651963875,2.134,234.12,234.09,2.3]
[1733651965172,2.1338,234.15,234.09,2.3]
[1733651965467,1.2732,234.24,234.14,10.51541978]
[1733651965673,1.2732,234.24,234.14,12.81541978]
[1733651966071,2.1336,234.17,234.14,2.3]
[1733651967065,2.1336,234.17,234.14,12.81541978]
[1733651967869,1.2732,234.24,234.14,12.81541978]
[1733651968068,2.1335,234.18,234.14,12.81541978]
[1733651968275,2.1335,234.18,234.14,14.94921978]
[1733651968770,2.1334,234.2,234.14,12.81541978]
[1733651968968,2.1334,234.2,234.15,2.1337]
[1733651969169,2.1334,234.2,234.15,4.4337]
[1733651969372,12.84,234.46,234.17,10.51541978]
[1733651969570,2.1331,234.23,234.2,10.51541978]
[1733651971674,2.1331,234.22,234.2,10.51541978]
[1733651971879,2.1331,234.22,234.17,12.64891978]
[1733651972071,2.1331,234.22,234.17,10.51541978]
[1733651972267,2.1334,234.2,234.14,12.64911978]
[1733651972471,2.1334,234.2,234.15,2.3]
[1733651972876,2.1334,234.19,234.15,2.1337]
[1733651973067,2.1334,234.19,234.16,2.3]
[1733651973274,10.51541978,234.24,234.11,10.51541978]
[1733651973568,10.51541978,234.24,234.12,2.3]
[1733651973774,1.3422,234.23,234.12,2.3]
[1733651974579,2.1337,234.15,234.12,2.3]
[1733651974772,1.3422,234.23,234.11,10.51541978]
[1733651974980,10.51541978,234.21,234.1,2.3]
[1733651975172,2.134,234.13,234.09,2.3]
[1733651976771,2.3,234.21,234.08,2.1343]
[1733651976986,2.1341,234.12,234.08,2.3]
[1733651977179,2.3,234.21,234.09,10.51541978]
[1733651978077,2.134,234.13,234.09,10.51541978]
[1733651980674,2.1341,234.12,234.09,10.51541978]
[1733651984580,2.3,234.21,234.11,6.7255454]
[1733651984790,6.7255454,234.2,234.13,6.7255454]
[1733651986383,2.1338,234.14,234.13,6.7255454]
[1733651986586,6.7255454,234.18,234.11,6.7255454]
[1733651987286,6.7255454,234.18,234.07,2.24]
[1733651987587,2.134,234.13,234.12,6.7255454]
[1733651988681,2.24,234.14,233.96,26.77259532]
[1733651988881,1.3422,234.23,234.04,6.7255454]
[1733651988882,6.7255454,234.11,234.04,6.7255454]
[1733651989084,6.7255454,234.09,234.02,6.7255454]
[1733651989288,2.1348,234.03,234.02,6.7255454]
[1733651990086,1.36,234.12,234.02,6.7255454]
[1733651990282,2.24,234.11,234.07,6.7255454]
[1733651990481,2.24,234.11,234.04,10.51307617]
[1733651990482,2.1345,234.07,234.04,10.51307617]
[1733651991087,2.1345,234.07,233.97,2.24]
[1733651991288,2.1345,234.07,234.02,10.51307617]
[1733651992591,2.1345,234.07,234.02,12.64797617]
[1733651992790,2.1345,234.07,233.97,2.24]
[1733651992791,2.1345,234.07,234.05,10.51307617]
[1733651993494,2.1344,234.08,234.05,10.51307617]
[1733651994591,2.1342,234.11,234.06,2.1346]
[1733651994797,2.24,234.16,234.06,2.1346]
[1733651994990,2.24,234.16,234.05,10.51307617]
[1733651995993,2.1343,234.1,234.05,12.64767617]
[1733651996798,2.24,234.16,234.05,12.64767617]
[1733651996998,2.1343,234.09,234.05,12.64767617]
[1733651998594,2.1344,234.08,234.05,10.51307617]
[1733652000393,2.1342,234.11,234.07,2.1345]
[1733652000598,2.24,234.15,234.08,10.51307617]
[1733652000898,2.1346,234.06,234.05,10.51307617]
[1733652001104,1.3387,234.14,234.02,10.51307617]
[1733652001799,2.1347,234.05,234.02,10.51307617]
[1733652001995,2.24,234.1,234.01,10.51307617]
[1733652002201,2.24,234.1,233.96,1.2868]
[1733652002202,2.24,234.1,233.97,2.24]
[1733652002407,2.24,234.1,233.99,10.51307617]
[1733652002605,2.1349,234.02,233.99,10.51307617]
[1733652002801,2.1349,234.02,233.98,2.1353]
[1733652003005,2.1349,234.02,233.98,12.64837617]
[1733652003705,2.24,234.1,233.98,10.51307617]
[1733652004010,2.1348,234.04,234.01,10.51307617]
[1733652004210,2.24,234.11,234.01,10.51307617]
[1733652004396,2.1345,234.07,234.05,10.51307617]
[1733652004705,2.24,234.11,234.05,10.51307617]
[1733652005302,2.1343,234.1,234.05,10.51307617]
[1733652005501,2.24,234.11,234.05,10.51307617]
[1733652005909,2.1345,234.07,234.05,10.51307617]
[1733652006306,2.24,234.11,234.05,10.51307617]
[1733652006606,2.1346,234.06,234.05,10.51307617]
[1733652008609,2.1346,234.06,234.02,2.1349]
[1733652009000,2.1346,234.06,234.03,10.51307617]
[1733652009807,2.1346,234.06,234.02,2.1349]
[1733652010002,2.1346,234.06,233.98,1.3939]
[1733652010003,2.1348,234.04,234.01,10.51307617]
[1733652010211,2.24,234.12,234.01,10.51307617]
[1733652010609,6.72999945,234.11,234.04,6.72999945]
[1733652011211,2.1347,234.05,233.98,3.5291]
[1733652011402,6.72999945,234.09,234.02,6.72999945]
[1733652011809,2.1345,234.07,234.02,6.72999945]
[1733652012106,6.72999945,234.11,234.04,6.72999945]
[1733652012312,2.1345,234.07,234.06,6.72999945]
[1733652012709,6.72999945,234.16,234.06,6.72999945]
[1733652012904,2.16,234.15,234.1,6.72999945]
[1733652013109,2.16,234.16,234.1,6.72999945]
[1733652013303,6.72999945,234.18,234.12,6.72999945]
[1733652013508,2.1336,234.17,234.14,6.72999945]
[1733652013708,2.16,234.18,234.14,6.72999945]
[1733652014115,6.72999945,234.2,234.14,6.72999945]
[1733652014604,2.1337,234.16,234.14,6.72999945]
[1733652014807,2.16,234.21,234.14,6.72999945]
[1733652015112,2.16,234.21,234.16,6.72999945]
[1733652015306,1.3274,234.24,234.18,6.72999945]
[1733652015307,8.05739945,234.24,234.18,6.72999945]
[1733652015513,2.16,234.24,234.2,6.72999945]
[1733652015914,2.133,234.24,234.2,6.72999945]
[1733652016515,2.133,234.23,234.17,12.63423989]
[1733652017217,2.133,234.23,234.17,14.79423989]
[1733652017915,2.1331,234.22,234.17,12.66073989]
[1733652018819,10.50073989,234.28,234.14,10.50073989]
[1733652019121,10.50073989,234.22,234.08,16.81573989]
[1733652019309,10.50073989,234.19,234.08,16.81573989]
[1733652019509,2.1337,234.16,234.08,16.81573989]
[1733652019716,10.50073989,234.19,234.08,16.81573989]
[1733652020106,10.50073989,234.19,234.08,1.3882]
[1733652020309,10.50073989,234.16,234.05,2.16]
[1733652020514,12.66073989,234.16,234.05,2.16]
[1733652020711,2.1343,234.09,234.05,2.16]
[1733652021106,12.66073989,234.16,234.01,2.6467]
[1733652021310,2.1345,234.07,234.01,2.6467]
[1733652021506,2.1345,234.07,234.02,2.16]
[1733652023716,2.1346,234.06,234.02,2.16]
[1733652027417,12.66073989,234.16,234.02,2.16]
[1733652028718,10.50073989,234.13,234.02,2.16]
[1733652029328,2.1342,234.1,234.02,2.16]
[1733652029519,10.50073989,234.13,234.02,2.16]
[1733652029520,2.16,234.11,234.02,2.16]
[1733652032322,2.1343,234.09,234.02,2.16]
[1733652032522,2.16,234.11,234.02,2.16]
[1733652033318,2.16,234.11,234.03,2.1348]
[1733652033826,2.16,234.11,234.02,4.2949]
[1733652034021,2.16,234.11,234.02,2.16]
[1733652034819,2.16,234.11,234.03,10.50073989]
[1733652035021,2.16,234.15,234.03,10.50073989]
[1733652035528,2.1341,234.12,234.03,10.50073989]
[1733652035727,10.50073989,234.18,234.03,10.50073989]
[1733652035925,2.1341,234.11,234.06,2.1346]
[1733652036531,2.1341,234.11,234.08,6.72766803]
[1733652037321,2.16,234.17,234.08,6.72766803]
[1733652037625,2.1338,234.14,234.1,6.72766803]
[1733652038025,2.1336,234.17,234.12,6.72766803]
[1733652038225,8.01226803,234.2,234.14,6.72766803]
[1733652038522,2.1335,234.19,234.14,6.72766803]
[1733652039031,2.1335,234.19,234.16,6.72766803]
[1733652039227,2.1334,234.19,234.16,6.72766803]
[1733652040125,6.72766803,234.23,234.16,6.72766803]
[1733652040635,2.16,234.24,234.14,2.1338]
[1733652040929,10.50452866,234.26,234.14,2.1338]
[1733652040930,2.1333,234.21,234.14,2.1338]
[1733652041330,2.1333,234.21,234.15,2.1337]
[1733652041929,12.66452866,234.26,234.13,10.50452866]
[1733652042522,2.1334,234.2,234.13,12.63842866]
[1733652043032,12.66452866,234.26,234.13,12.63842866]
[1733652043238,10.50452866,234.23,234.12,2.16]
[1733652043828,2.1335,234.18,234.12,4.294]
[1733652044323,10.50452866,234.23,234.12,4.294]
[1733652044531,2.1336,234.17,234.12,4.294]
[1733652044930,2.1336,234.17,234.12,2.16]
[1733652045634,2.12,234.21,234.12,2.16]
[1733652047134,2.12,234.21,234.11,2.134]
[1733652047433,2.1336,234.17,234.11,2.134]
[1733652048240,2.1333,234.2,234.13,10.50452866]
[1733652049740,2.1333,234.2,234.15,2.1337]
[1733652050040,2.12,234.25,234.13,10.50452866]
[1733652050228,2.1332,234.22,234.16,2.1336]
[1733652050938,2.1332,234.22,234.17,2.1335]
[1733652051129,2.12,234.26,234.16,10.50452866]
[1733652051331,1.318,234.3,234.19,10.50452866]
[1733652051840,2.1327,234.26,234.21,2.1331]
[1733652052237,1.318,234.3,234.2,2.12]
[1733652052542,1.318,234.3,234.22,10.50452866]
[1733652053732,2.1327,234.27,234.22,12.63762866]
[1733652054437,2.12,234.33,234.22,10.50452866]
[1733652054840,2.12,234.33,234.25,10.50452866]
[1733652055039,10.50452866,234.38,234.25,12.62452866]
[1733652055237,3.9495,234.39,234.25,12.62452866]
[1733652055238,2.12,234.37,234.28,10.50452866]
[1733652055440,2.1319,234.36,234.29,2.1324]
[1733652055639,2.12,234.38,234.28,10.50452866]
[1733652056332,2.12,234.38,234.31,10.50452866]
[1733652056538,2.12,234.44,234.34,10.50452866]
[1733652056735,1.2698,234.46,234.34,10.50452866]
[1733652057045,2.1313,234.42,234.36,2.1318]
[1733652057245,2.1313,234.42,234.36,4.2518]
[1733652057446,2.12,234.47,234.36,2.12]
[1733652057648,2.1312,234.44,234.37,2.1317]
[1733652057849,1.3542,234.48,234.37,2.1317]
[1733652058039,2.1312,234.43,234.37,2.1317]
[1733652059046,2.1312,234.43,234.36,2.12]
[1733652059047,1.3542,234.48,234.36,2.12]
[1733652059249,10.50452866,234.46,234.36,2.12]
[1733652059549,10.50452866,234.46,234.34,10.50452866]
[1733652059747,2.1314,234.41,234.35,2.12]
[1733652060444,10.50452866,234.46,234.34,10.50452866]
[1733652060745,2.1317,234.38,234.33,2.12]
[1733652061447,2.1316,234.4,234.33,4.2522]
[1733652061646,10.50452866,234.46,234.33,4.2522]
[1733652062546,10.50452866,234.46,234.33,2.12]
[1733652062743,2.1312,234.44,234.37,10.50452866]
[1733652062946,2.12,234.47,234.38,2.12]
[1733652063352,2.1315,234.42,234.38,2.12]
[1733652063547,12.62452866,234.47,234.38,2.12]
[1733652064850,10.50452866,234.44,234.32,1.3446]
[1733652065049,10.50452866,234.44,234.31,10.50452866]
[1733652065245,10.50452866,234.41,234.28,10.50452866]
[1733652065451,2.1323,234.33,234.29,2.12]
[1733652065952,2.1323,234.33,234.28,12.62452866]
[1733652066954,2.132,234.36,234.3,2.1325]
[1733652067152,12.62452866,234.41,234.28,2.12]
[1733652067351,1.3196,234.4,234.28,2.12]
[1733652067552,1.3196,234.4,234.25,13.20732866]
[1733652067756,10.50452866,234.35,234.22,10.50452866]
[1733652068051,12.62452866,234.35,234.22,12.62452866]
[1733652068258,10.50452866,234.32,234.2,2.12]
[1733652068556,1.3196,234.31,234.2,2.12]
[1733652068759,2.12,234.3,234.2,2.12]
[1733652069258,10.50452866,234.29,234.2,2.12]
[1733652069559,10.50452866,234.26,234.16,2.12]
[1733652070752,2.1333,234.22,234.16,2.12]
[1733652071656,2.1329,234.27,234.2,12.63792866]
[1733652072061,1.3196,234.31,234.2,10.50452866]
[1733652072263,2.1329,234.26,234.2,10.50452866]
[1733652072462,2.1329,234.26,234.21,2.12]
[1733652073255,2.1327,234.28,234.21,4.2533]
[1733652073660,1.3196,234.31,234.21,4.2533]
[1733652073961,1.3196,234.31,234.13,2.6713]
[1733652073962,2.1325,234.31,234.24,2.1331]
[1733652074167,1.4049,234.34,234.25,2.14]
[1733652074969,11.90942866,234.34,234.22,2.14]
[1733652075258,1.4049,234.34,234.22,2.14]
[1733652075759,3.5449,234.34,234.23,2.1331]
[1733652075957,3.5449,234.34,234.22,2.14]
[1733652076156,3.5449,234.34,234.13,2.6713]
[1733652076157,10.50452866,234.3,234.17,10.50452866]
[1733652076357,10.50452866,234.3,234.18,2.14]
[1733652076562,2.14,234.29,234.18,2.14]
[1733652076760,2.1331,234.25,234.18,2.14]
[1733652077362,2.1331,234.24,234.18,2.14]
[1733652077761,2.1331,234.24,234.18,4.2736]
[1733652078466,2.1331,234.24,234.18,2.14]
[1733652079462,2.14,234.29,234.2,10.50452866]
[1733652079660,2.14,234.32,234.2,10.50452866]
[1733652080063,2.14,234.32,234.18,2.14]
[1733652080064,1.4049,234.34,234.23,10.50452866]
[1733652080262,1.4049,234.34,234.24,2.14]
[1733652080869,2.1324,234.31,234.24,2.14]
[1733652081165,11.90942866,234.34,234.24,2.14]
[1733652081565,2.1327,234.29,234.24,2.14]
[1733652081962,2.1327,234.28,234.24,2.14]
[1733652082166,10.50452866,234.31,234.19,2.14]
[1733652082367,2.14,234.3,234.19,2.14]
[1733652082565,4.687,234.3,234.19,2.14]
[1733652083466,10.50452866,234.28,234.19,2.14]
[1733652083966,2.1332,234.24,234.19,2.14]
[1733652084470,2.133,234.26,234.19,2.14]
[1733652084662,12.64452866,234.28,234.19,2.14]
[1733652085572,2.1332,234.23,234.19,2.14]
[1733652087072,2.14,234.28,234.19,2.14]
[1733652087266,2.547,234.3,234.2,10.50452866]
[1733652088674,2.1327,234.29,234.21,2.1333]
[1733652089173,2.1327,234.28,234.21,2.1333]
[1733652090371,2.1328,234.27,234.21,2.1333]
[1733652090577,2.547,234.3,234.2,12.63792866]
[1733652090784,2.547,234.3,234.19,2.14]
[1733652091481,2.133,234.25,234.19,2.14]
[1733652092084,2.133,234.25,234.19,4.2735]
[1733652092873,2.547,234.3,234.19,2.14]
[1733652093073,2.1331,234.24,234.19,2.14]
[1733652093977,10.50452866,234.31,234.19,2.14]
[1733652094387,2.6454,234.32,234.17,2.14]
[1733652094388,10.50452866,234.28,234.17,2.14]
[1733652094589,10.50452866,234.28,234.14,11.77692866]
[1733652094590,2.14,234.27,234.14,11.77692866]
[1733652094775,2.14,234.27,234.14,13.91692866]
[1733652094974,2.1334,234.22,234.15,2.1339]
[1733652095380,2.14,234.27,234.15,2.1339]
[1733652095780,2.1335,234.2,234.15,2.1339]
[1733652096385,2.1336,234.19,234.14,14.77852866]
[1733652096584,2.14,234.27,234.14,12.64452866]
[1733652097188,2.14,234.27,234.2,10.50452866]
[1733652098088,2.1329,234.26,234.2,12.63792866]
[1733652099083,2.1329,234.26,234.21,2.1333]
[1733652100595,2.1329,234.26,234.2,10.50452866]
[1733652101992,2.1329,234.26,234.2,12.63792866]
[1733652102385,2.1329,234.26,234.2,10.50452866]
[1733652102588,2.1328,234.27,234.22,2.1333]
[1733652103900,2.1327,234.28,234.23,12.63772866]
[1733652104097,2.6454,234.32,234.23,10.50452866]
[1733652104393,2.1326,234.3,234.23,10.50452866]
[1733652104696,2.14,234.37,234.26,10.50452866]
[1733652105600,2.1323,234.33,234.27,2.1327]
[1733652105897,2.1323,234.33,234.26,10.50452866]
[1733652106100,2.1322,234.35,234.3,2.1325]
[1733652106291,2.14,234.38,234.3,2.1325]
[1733652106597,2.14,234.41,234.3,2.14]
[1733652107494,4.0237,234.45,234.32,10.50452866]
[1733652107894,2.14,234.44,234.32,10.50452866]
[1733652108395,2.1315,234.42,234.35,2.1321]
[1733652108598,6.1637,234.45,234.35,2.1321]
[1733652108901,10.50452866,234.43,234.32,10.50452866]
[1733652109103,2.1319,234.37,234.32,10.50452866]
[1733652109303,10.50452866,234.43,234.32,10.50452866]
[1733652109494,2.1316,234.41,234.35,2.1321]
[1733652110396,1.2867,234.45,234.35,10.50452866]
[1733652110997,1.2867,234.45,234.36,2.14]
[1733652110998,2.1312,234.45,234.36,2.14]
[1733652111200,2.1312,234.45,234.38,10.50452866]
[1733652112600,2.1312,234.45,234.39,2.1317]
[1733652112895,2.14,234.5,234.41,10.50452866]
[1733652113100,2.14,234.5,234.41,14.77602866]
[1733652114095,12.64452866,234.5,234.37,4.8808]
[1733652114299,2.1313,234.44,234.37,4.8808]
[1733652114604,12.64452866,234.5,234.37,7.0127]
[1733652116005,12.64452866,234.5,234.37,15.38532866]
[1733652116306,12.64452866,234.5,234.4,2.1316]
[1733652117306,2.131,234.47,234.41,2.1315]
[1733652117898,2.1311,234.46,234.37,15.38532866]
[1733652118399,2.1311,234.46,234.39,2.1317]
[1733652118603,2.1312,234.45,234.39,2.1317]
[1733652119208,2.1313,234.44,234.39,2.1317]
[1733652119807,12.64452866,234.5,234.37,14.01182866]
[1733652120004,10.50452866,234.47,234.34,10.50452866]
[1733652121100,2.1313,234.44,234.37,2.1319]
[1733652121298,12.64452866,234.5,234.37,10.50452866]
[1733652122709,2.1313,234.44,234.38,2.1318]
[1733652124404,2.1314,234.43,234.37,12.63642866]
[1733652124607,10.50452866,234.47,234.34,10.50452866]
[1733652126006,10.50452866,234.47,234.26,2.6753]
[1733652126211,10.50452866,234.47,234.33,10.50452866]
[1733652126914,10.50452866,234.47,234.33,2.14]
[1733652127108,10.50452866,234.47,234.36,2.1319]
[1733652128615,2.1314,234.42,234.36,2.1319]
[1733652129719,2.1316,234.41,234.36,2.1319]
[1733652130017,10.50452866,234.5,234.35,10.50452866]
[1733652130317,2.14,234.49,234.35,10.50452866]
[1733652130515,2.1312,234.45,234.39,2.1316]
[1733652130817,2.14,234.49,234.38,12.64452866]
[1733652131612,2.1311,234.46,234.41,2.1314]
[1733652132207,1.3518,234.51,234.38,12.64452866]
[1733652132409,2.1309,234.48,234.42,2.1314]
[1733652132617,1.3518,234.51,234.41,10.50452866]
[1733652132812,2.1309,234.49,234.43,2.1313]
[1733652137616,3.4318,234.51,234.41,2.1314]
[1733652137617,2.1311,234.46,234.41,2.1314]
[1733652138320,2.131,234.47,234.42,2.1314]
[1733652138517,2.131,234.47,234.43,6.70805464]
[1733652138923,6.70805464,234.49,234.43,6.70805464]
[1733652139226,2.1309,234.48,234.43,8.83935464]
[1733652139725,2.1309,234.48,234.43,6.70805464]
[1733652139913,6.70805464,234.49,234.43,6.70805464]
[1733652140119,2.131,234.47,234.43,6.70805464]
[1733652140621,1.2708,234.52,234.45,6.70805464]
[1733652140820,2.08,234.53,234.45,6.70805464]
[1733652141023,6.70805464,234.53,234.45,6.70805464]
[1733652141217,2.1306,234.51,234.47,6.70805464]
[1733652141618,6.70805464,234.53,234.47,6.70805464]
[1733652141820,2.1307,234.5,234.47,6.70805464]
[1733652142325,2.1307,234.5,234.45,6.70805464]
[1733652143218,6.70805464,234.51,234.45,6.70805464]
[1733652143733,2.1308,234.5,234.45,6.70805464]
[1733652143914,6.70805464,234.51,234.45,6.70805464]
[1733652144322,6.70805464,234.49,234.43,6.70805464]
[1733652144725,2.1309,234.48,234.43,6.70805464]
[1733652145125,2.1309,234.48,234.43,8.83935464]
[1733652146028,2.1309,234.48,234.45,6.70805464]
[1733652146623,2.1308,234.5,234.45,6.70805464]
[1733652147231,2.1306,234.51,234.46,2.131]
[1733652147725,6.70805464,234.52,234.45,6.70805464]
[1733652147923,2.1307,234.5,234.45,8.83915464]
[1733652149024,2.1307,234.5,234.47,6.70805464]
[1733652149723,6.70805464,234.53,234.47,6.70805464]
[1733652150225,1.3482,234.59,234.47,6.70805464]
[1733652150432,9.32490732,234.58,234.49,6.70805464]
[1733652150632,6.70805464,234.56,234.49,6.70805464]
[1733652150823,7.24490732,234.55,234.49,6.70805464]
[1733652151529,2.1304,234.54,234.49,2.1307]
[1733652151733,6.70805464,234.56,234.49,6.70805464]
[1733652151929,6.70805464,234.54,234.49,6.70805464]
[1733652152819,2.1305,234.53,234.49,6.70805464]
[1733652153431,2.1305,234.53,234.49,8.83885464]
[1733652153626,6.70805464,234.55,234.49,8.83885464]
[1733652153824,2.1303,234.54,234.49,8.83885464]
[1733652154243,1.3482,234.59,234.51,6.70805464]
[1733652154424,1.3482,234.59,234.44,2.08]
[1733652154425,13.95900802,234.58,234.52,6.70805464]
[1733652154631,7.25095338,234.57,234.52,6.70805464]
[1733652154939,2.1312,234.45,234.4,6.70805464]
[1733652155127,6.70805464,234.46,234.41,2.1330148]
[1733652155432,2.1312,234.44,234.41,2.1330148]
[1733652155822,6.70805464,234.42,234.41,2.1330148]
[1733652156023,8.83945464,234.42,234.41,2.10915347]
[1733652156332,16.08721105,234.42,234.41,2.10915347]
[1733652156534,7.24775641,234.42,234.41,2.10915347]
[1733652156828,6.70805464,234.45,234.41,2.10915347]
[1733652157222,2.1313,234.44,234.41,2.10915347]
[1733652158835,2.1311,234.46,234.41,8.81720811]
[1733652159730,2.1307,234.5,234.45,6.70805464]
[1733652160529,8.83865464,234.52,234.45,6.70805464]
[1733652160732,8.83865464,234.52,234.47,6.70805464]
[1733652160931,2.1306,234.52,234.47,6.70805464]
[1733652161636,8.83835464,234.54,234.49,6.70805464]
[1733652162234,6.70805464,234.54,234.49,8.83875464]
[1733652162430,8.83825464,234.56,234.49,8.83875464]
[1733652162635,2.1302,234.56,234.46,10.47495016]
[1733652163334,2.1302,234.56,234.49,2.1308]
[1733652163740,2.13,234.57,234.48,2.08]
[1733652164535,2.13,234.57,234.52,2.1305]
[1733652165533,2.08,234.59,234.49,10.47495016]
[1733652165739,1.4022,234.61,234.53,2.1304]
[1733652166734,1.4022,234.61,234.49,10.47495016]
[1733652166934,1.4022,234.61,234.53,2.1304]
[1733652168735,1.4022,234.61,234.52,2.1305]
[1733652168941,1.4022,234.61,234.49,10.47495016]
[1733652169837,1.3921,234.66,234.55,10.47495016]
[1733652170039,3.4721,234.66,234.55,10.47495016]
[1733652170431,1.3921,234.66,234.55,10.47495016]
[1733652170741,2.1295,234.63,234.55,10.47495016]
[1733652171130,2.1294,234.65,234.59,2.1298]
[1733652171337,12.55495016,234.67,234.56,1.403]
[1733652172237,2.08,234.67,234.56,1.403]
[1733652172438,2.1294,234.64,234.58,2.1299]
[1733652172635,10.47495016,234.68,234.56,1.403]
[1733652173436,2.08,234.69,234.56,1.403]
[1733652173637,2.1292,234.66,234.56,1.403]
[1733652174238,2.1291,234.68,234.58,10.47495016]
[1733652174437,2.1291,234.68,234.59,2.08]
[1733652174643,2.08,234.73,234.61,10.47495016]
[1733652174838,2.1289,234.7,234.63,2.1295]
[1733652175033,2.08,234.73,234.63,2.1295]
[1733652175334,10.47495016,234.75,234.64,10.47495016]
[1733652175540,2.1289,234.71,234.64,12.60425016]
[1733652175739,2.08,234.74,234.64,12.60425016]
[1733652176040,2.08,234.73,234.64,12.60425016]